[Event "Early-Titled-Tuesday-Blitz-February-20-2024"]
[Site "Chess.com"]
[Date "2024.02.20"]
[Round "1"]
[White "poummba"]
[Black "Sattarov_Bobur"]
[Result "0-1"]
[WhiteElo "2447"]
[BlackElo "2803"]
[TimeControl "180+1"]
[EndTime "8:07:05 PST"]
[Termination "Sattarov_Bobur won on time"]

1. d4 {[%clk 0:03:00.9]} 1... Nf6 {[%clk 0:02:57.8]} 2. c4 {[%clk 0:03:01]} 2...
c5 {[%clk 0:02:57.6]} 3. d5 {[%clk 0:03:00.7]} 3... g6 {[%clk 0:02:58]} 4. Nc3
{[%clk 0:03:00.8]} 4... Bg7 {[%clk 0:02:58.9]} 5. e4 {[%clk 0:03:01.1]} 5... d6
{[%clk 0:02:59.8]} 6. Bd3 {[%clk 0:03:01.4]} 6... O-O {[%clk 0:03:00.4]} 7. Nge2
{[%clk 0:03:01.6]} 7... e6 {[%clk 0:03:00.9]} 8. O-O {[%clk 0:03:01.6]} 8...
exd5 {[%clk 0:03:01.1]} 9. cxd5 {[%clk 0:03:02.2]} 9... a6 {[%clk 0:03:00.4]}
10. a4 {[%clk 0:03:01.7]} 10... Qc7 {[%clk 0:03:00.8]} 11. Ng3 {[%clk
0:02:59.2]} 11... Nbd7 {[%clk 0:03:00]} 12. f4 {[%clk 0:02:57.9]} 12... c4
{[%clk 0:02:57.9]} 13. Bc2 {[%clk 0:02:57.3]} 13... Nc5 {[%clk 0:02:58.1]} 14.
h3 {[%clk 0:02:51.2]} 14... Re8 {[%clk 0:02:57.9]} 15. Qf3 {[%clk 0:02:50.6]}
15... Nb3 {[%clk 0:02:52.4]} 16. Bxb3 {[%clk 0:02:27.7]} 16... Qb6+ {[%clk
0:02:50.8]} 17. Kh1 {[%clk 0:02:22.8]} 17... Qxb3 {[%clk 0:02:51.2]} 18. f5
{[%clk 0:02:17.9]} 18... Rf8 {[%clk 0:02:29.6]} 19. Bf4 {[%clk 0:01:41.6]} 19...
Qb6 {[%clk 0:02:22.8]} 20. a5 {[%clk 0:01:33.4]} 20... Qc7 {[%clk 0:02:18.9]}
21. Na4 {[%clk 0:01:16.6]} 21... Nd7 {[%clk 0:02:17.4]} 22. Nb6 {[%clk
0:01:04.6]} 22... Nxb6 {[%clk 0:02:13]} 23. axb6 {[%clk 0:01:05.5]} 23... Qxb6
{[%clk 0:02:13.9]} 24. f6 {[%clk 0:00:56.4]} 24... Bh8 {[%clk 0:01:52.9]} 25.
Bh6 {[%clk 0:00:55.2]} 25... Re8 {[%clk 0:01:51.5]} 26. Bg7 {[%clk 0:00:54.2]}
26... Re5 {[%clk 0:01:46.5]} 27. Bxh8 {[%clk 0:00:41.1]} 27... Kxh8 {[%clk
0:01:47.4]} 28. Qf4 {[%clk 0:00:41.2]} 28... Qd8 {[%clk 0:01:46.4]} 29. Qh6
{[%clk 0:00:31.9]} 29... Qg8 {[%clk 0:01:44.3]} 30. Rf4 {[%clk 0:00:31.7]} 30...
Bd7 {[%clk 0:01:36.8]} 31. Rh4 {[%clk 0:00:29]} 31... Rc8 {[%clk 0:01:33.6]} 32.
Rf1 {[%clk 0:00:17.7]} 32... c3 {[%clk 0:01:32.3]} 33. bxc3 {[%clk 0:00:15.9]}
33... Rxc3 {[%clk 0:01:33.2]} 34. Nh5 {[%clk 0:00:10.4]} 34... Rxh5 {[%clk
0:01:25.3]} 35. Rxh5 {[%clk 0:00:09.3]} 35... gxh5 {[%clk 0:01:26.2]} 36. Rb1
{[%clk 0:00:05.4]} 36... b5 {[%clk 0:01:10.5]} 37. Ra1 {[%clk 0:00:05]} 37...
Rc2 {[%clk 0:01:03.3]} 38. Rg1 {[%clk 0:00:03.5]} 38... b4 {[%clk 0:01:01]} 39.
g4 {[%clk 0:00:03.3]} 39... hxg4 {[%clk 0:00:57.4]} 40. h4 {[%clk 0:00:01.1]}
40... b3 {[%clk 0:00:49.9]} 41. Ra1 {[%clk 0:00:01.8]} 41... b2 {[%clk
0:00:49.5]} 42. Rxa6 {[%clk 0:00:01.3]} 42... b1=Q+ {[%clk 0:00:49.5]} 0-1

[Event "Early-Titled-Tuesday-Blitz-February-20-2024"]
[Site "Chess.com"]
[Date "2024.02.20"]
[Round "1"]
[White "TimAina"]
[Black "PavelChernomordik"]
[Result "1-0"]
[WhiteElo "2776"]
[BlackElo "2435"]
[TimeControl "180+1"]
[EndTime "8:07:05 PST"]
[Termination "TimAina won on time"]

1. e4 {[%clk 0:03:00.9]} 1... g6 {[%clk 0:02:54.6]} 2. d4 {[%clk 0:03:00.8]}
2... Bg7 {[%clk 0:02:50.5]} 3. Nc3 {[%clk 0:03:01.1]} 3... d6 {[%clk 0:02:49.2]}
4. Be3 {[%clk 0:02:59.4]} 4... a6 {[%clk 0:02:48]} 5. Qd2 {[%clk 0:02:58]} 5...
b5 {[%clk 0:02:46.9]} 6. O-O-O {[%clk 0:02:57.8]} 6... Bb7 {[%clk 0:02:45.8]} 7.
Bd3 {[%clk 0:02:58.1]} 7... Nd7 {[%clk 0:02:41.9]} 8. f4 {[%clk 0:02:48.4]} 8...
b4 {[%clk 0:02:33.8]} 9. Nce2 {[%clk 0:02:45.8]} 9... Bf6 {[%clk 0:02:28.2]} 10.
Nf3 {[%clk 0:02:42.3]} 10... c5 {[%clk 0:02:25.2]} 11. e5 {[%clk 0:02:41]} 11...
Bg7 {[%clk 0:02:23.7]} 12. dxc5 {[%clk 0:02:30.4]} 12... dxe5 {[%clk 0:02:18.6]}
13. Bc4 {[%clk 0:02:25.1]} 13... Nh6 {[%clk 0:02:08.4]} 14. fxe5 {[%clk
0:02:18.3]} 14... Ng4 {[%clk 0:01:44.3]} 15. e6 {[%clk 0:01:36.3]} 15... fxe6
{[%clk 0:01:43.8]} 16. Bxe6 {[%clk 0:01:36.5]} 16... Ndf6 {[%clk 0:01:38]} 17.
Qxb4 {[%clk 0:01:32.5]} 17... Qb8 {[%clk 0:01:19.9]} 18. Bf4 {[%clk 0:01:26.3]}
18... Qa7 {[%clk 0:01:09]} 19. Ng5 {[%clk 0:01:11]} 19... Nf2 {[%clk 0:00:54]}
20. Be3 {[%clk 0:00:34]} 20... Nxd1 {[%clk 0:00:43.9]} 21. Rxd1 {[%clk
0:00:30.9]} 21... Bh6 {[%clk 0:00:28.7]} 22. Nd4 {[%clk 0:00:28.7]} 22... Kf8
{[%clk 0:00:16.8]} 23. Bb3 {[%clk 0:00:21.8]} 23... Bxg5 {[%clk 0:00:12.1]} 24.
Ne6+ {[%clk 0:00:19.7]} 24... Ke8 {[%clk 0:00:05.5]} 25. Qa4+ {[%clk 0:00:19.1]}
25... Kf7 {[%clk 0:00:04]} 26. Nxg5+ {[%clk 0:00:19.7]} 26... Kg7 {[%clk
0:00:04]} 27. Ne6+ {[%clk 0:00:20.4]} 27... Kf7 {[%clk 0:00:03.8]} 28. Nc7+
{[%clk 0:00:19.7]} 1-0

[Event "Early-Titled-Tuesday-Blitz-February-20-2024"]
[Site "Chess.com"]
[Date "2024.02.20"]
[Round "1"]
[White "RamyresCoelho"]
[Black "Huragan007"]
[Result "0-1"]
[WhiteElo "2233"]
[BlackElo "2604"]
[TimeControl "180+1"]
[EndTime "8:07:05 PST"]
[Termination "Huragan007 won by resignation"]

1. e4 {[%clk 0:03:00.7]} 1... c5 {[%clk 0:02:57.9]} 2. Nf3 {[%clk 0:02:59.7]}
2... d6 {[%clk 0:02:58.5]} 3. d4 {[%clk 0:02:59.2]} 3... cxd4 {[%clk 0:02:59.4]}
4. Nxd4 {[%clk 0:03:00.1]} 4... Nf6 {[%clk 0:03:00.2]} 5. Nc3 {[%clk 0:03:00.3]}
5... g6 {[%clk 0:03:01]} 6. f4 {[%clk 0:03:00.6]} 6... Nc6 {[%clk 0:03:00.7]} 7.
Nxc6 {[%clk 0:02:57.6]} 7... bxc6 {[%clk 0:03:00.9]} 8. e5 {[%clk 0:02:58.5]}
8... dxe5 {[%clk 0:02:56.7]} 9. Qxd8+ {[%clk 0:02:57.4]} 9... Kxd8 {[%clk
0:02:57.6]} 10. fxe5 {[%clk 0:02:56.9]} 10... Ng4 {[%clk 0:02:56.8]} 11. Bf4
{[%clk 0:02:55.2]} 11... Bg7 {[%clk 0:02:55.5]} 12. O-O-O+ {[%clk 0:02:49.5]}
12... Bd7 {[%clk 0:02:17]} 13. Bc4 {[%clk 0:02:17.2]} 13... Bxe5 {[%clk
0:01:57]} 14. Bxe5 {[%clk 0:01:55]} 14... Nxe5 {[%clk 0:01:56.8]} 15. Bb3 {[%clk
0:01:49.2]} 15... Kc7 {[%clk 0:01:56.3]} 16. Rhe1 {[%clk 0:01:47.6]} 16... f6
{[%clk 0:01:55.6]} 17. Ne4 {[%clk 0:01:43.5]} 17... Bg4 {[%clk 0:01:49.8]} 18.
Rd4 {[%clk 0:01:36.1]} 18... Rhd8 {[%clk 0:01:45.6]} 19. Ra4 {[%clk 0:01:32.4]}
19... Bf5 {[%clk 0:01:18.1]} 20. Nc5 {[%clk 0:01:29.1]} 20... Kb6 {[%clk
0:01:16.9]} 21. Na6 {[%clk 0:01:05.4]} 21... Rd6 {[%clk 0:01:05.1]} 22. c4
{[%clk 0:01:01]} 22... Nd3+ {[%clk 0:01:03.4]} 23. Kd2 {[%clk 0:00:57.9]} 23...
Nxb2+ {[%clk 0:00:55.7]} 24. Ke3 {[%clk 0:00:50.4]} 24... Nxa4 {[%clk
0:00:56.6]} 25. c5+ {[%clk 0:00:48]} 25... Nxc5 {[%clk 0:00:56.4]} 26. Nxc5
{[%clk 0:00:46.2]} 26... Kxc5 {[%clk 0:00:57.3]} 27. Rc1+ {[%clk 0:00:46.7]}
27... Kb6 {[%clk 0:00:57.5]} 28. h3 {[%clk 0:00:45.3]} 28... Rad8 {[%clk
0:00:57.5]} 29. Bc4 {[%clk 0:00:41]} 29... Bd3 {[%clk 0:00:53]} 30. Bf7 {[%clk
0:00:35.7]} 30... e6 {[%clk 0:00:49.1]} 31. Rc3 {[%clk 0:00:33.3]} 31... Rf8
{[%clk 0:00:47.6]} 32. Bxe6 {[%clk 0:00:29.6]} 32... Rxe6+ {[%clk 0:00:47.5]}
33. Kxd3 {[%clk 0:00:29.8]} 33... Rd8+ {[%clk 0:00:47.8]} 34. Kc4 {[%clk
0:00:28.5]} 34... Re2 {[%clk 0:00:46.4]} 35. a4 {[%clk 0:00:24.9]} 35... Rxg2
{[%clk 0:00:45.9]} 36. a5+ {[%clk 0:00:21.7]} 36... Kc7 {[%clk 0:00:44.6]} 37.
a6 {[%clk 0:00:21.2]} 37... Rg5 {[%clk 0:00:42.8]} 38. Rb3 {[%clk 0:00:20.6]}
38... Rb8 {[%clk 0:00:43.1]} 39. Rd3 {[%clk 0:00:19.9]} 39... Rd5 {[%clk
0:00:42.5]} 40. Rc3 {[%clk 0:00:18.5]} 40... Kd6 {[%clk 0:00:42.5]} 41. h4
{[%clk 0:00:16]} 41... Rc5+ {[%clk 0:00:42.8]} 42. Kd4 {[%clk 0:00:15.3]} 42...
Rxc3 {[%clk 0:00:43.7]} 43. Kxc3 {[%clk 0:00:15.2]} 43... Rb6 {[%clk 0:00:44.3]}
44. h5 {[%clk 0:00:14.3]} 44... gxh5 {[%clk 0:00:44.3]} 0-1

[Event "Early-Titled-Tuesday-Blitz-February-20-2024"]
[Site "Chess.com"]
[Date "2024.02.20"]
[Round "1"]
[White "Truequitos"]
[Black "Yushko_Olga"]
[Result "0-1"]
[WhiteElo "2569"]
[BlackElo "2205"]
[TimeControl "180+1"]
[EndTime "8:07:06 PST"]
[Termination "Yushko_Olga won on time"]

1. d4 {[%clk 0:03:00.2]} 1... e6 {[%clk 0:02:59.5]} 2. e4 {[%clk 0:02:58.6]}
2... d5 {[%clk 0:02:58.8]} 3. Nc3 {[%clk 0:02:58.6]} 3... Nf6 {[%clk 0:02:58.7]}
4. Bg5 {[%clk 0:02:57.7]} 4... dxe4 {[%clk 0:02:57.7]} 5. Nxe4 {[%clk
0:02:57.2]} 5... Be7 {[%clk 0:02:58.5]} 6. Bxf6 {[%clk 0:02:52]} 6... Bxf6
{[%clk 0:02:59.4]} 7. Nf3 {[%clk 0:02:50.6]} 7... O-O {[%clk 0:02:59.3]} 8. Bd3
{[%clk 0:02:50.1]} 8... g6 {[%clk 0:02:59.1]} 9. h4 {[%clk 0:02:50.2]} 9... Bg7
{[%clk 0:02:59.1]} 10. h5 {[%clk 0:02:49.7]} 10... f5 {[%clk 0:02:58.8]} 11.
Neg5 {[%clk 0:02:42.6]} 11... Bxd4 {[%clk 0:02:46.8]} 12. Nxh7 {[%clk
0:02:28.2]} 12... Kxh7 {[%clk 0:02:37.3]} 13. hxg6+ {[%clk 0:02:28.3]} 13... Kg8
{[%clk 0:02:32]} 14. g4 {[%clk 0:01:24.9]} 14... Bxb2 {[%clk 0:02:21.6]} 15. Rb1
{[%clk 0:01:22.2]} 15... Bc3+ {[%clk 0:02:21]} 16. Kf1 {[%clk 0:01:22.8]} 16...
b6 {[%clk 0:02:13.6]} 17. gxf5 {[%clk 0:01:19.7]} 17... Nc6 {[%clk 0:01:56.3]}
18. Qe2 {[%clk 0:00:59.6]} 18... Nd4 {[%clk 0:01:44.6]} 19. Qe3 {[%clk
0:00:57.6]} 19... Qf6 {[%clk 0:01:37.5]} 20. Qh6 {[%clk 0:00:43.7]} 20... Qg7
{[%clk 0:01:37.4]} 21. Qxg7+ {[%clk 0:00:39.6]} 21... Kxg7 {[%clk 0:01:38.3]}
22. Rh7+ {[%clk 0:00:39.5]} 22... Kf6 {[%clk 0:01:35.8]} 23. Nh2 {[%clk
0:00:28.4]} 23... exf5 {[%clk 0:01:33.3]} 24. Rxc7 {[%clk 0:00:22.1]} 24... Ba5
{[%clk 0:01:21.8]} 25. Bc4 {[%clk 0:00:15.4]} 25... Be6 {[%clk 0:01:21.2]} 26.
Rd1 {[%clk 0:00:09.4]} 26... Bxc4+ {[%clk 0:01:20]} 27. Rxc4 {[%clk 0:00:10.3]}
27... Ne6 {[%clk 0:01:17.7]} 28. Rc6 {[%clk 0:00:06.5]} 28... Rac8 {[%clk
0:01:16.2]} 29. Rdd6 {[%clk 0:00:07]} 29... Rxc6 {[%clk 0:01:16]} 30. Rxc6
{[%clk 0:00:07.9]} 30... Re8 {[%clk 0:01:10.1]} 31. Nf3 {[%clk 0:00:07.2]} 31...
Kxg6 {[%clk 0:01:09.5]} 32. Ne5+ {[%clk 0:00:06.4]} 32... Kf6 {[%clk 0:01:07.1]}
33. Nc4 {[%clk 0:00:06.2]} 33... Rd8 {[%clk 0:01:01]} 34. Nxa5 {[%clk
0:00:06.2]} 34... bxa5 {[%clk 0:01:01.4]} 35. Ra6 {[%clk 0:00:06.9]} 35... Rd7
{[%clk 0:00:59.2]} 36. Rxa5 {[%clk 0:00:06.9]} 36... Rc7 {[%clk 0:00:58.5]} 37.
Ke1 {[%clk 0:00:05.7]} 37... Nd4 {[%clk 0:00:56.8]} 38. c3 {[%clk 0:00:05.1]}
38... Nf3+ {[%clk 0:00:54.7]} 39. Ke2 {[%clk 0:00:04.9]} 39... Ne5 {[%clk
0:00:54.6]} 40. Kd2 {[%clk 0:00:03.9]} 40... Nc4+ {[%clk 0:00:54.4]} 0-1

[Event "Early-Titled-Tuesday-Blitz-February-20-2024"]
[Site "Chess.com"]
[Date "2024.02.20"]
[Round "1"]
[White "Yeritsyaan"]
[Black "Sofia_Blokhin"]
[Result "1-0"]
[WhiteElo "2613"]
[BlackElo "2252"]
[TimeControl "180+1"]
[EndTime "8:07:07 PST"]
[Termination "Yeritsyaan won by resignation"]

1. Nf3 {[%clk 0:02:58.5]} 1... Nf6 {[%clk 0:02:57.3]} 2. b3 {[%clk 0:02:58]}
2... g6 {[%clk 0:02:57.3]} 3. Bb2 {[%clk 0:02:58.4]} 3... Bg7 {[%clk 0:02:57.5]}
4. e3 {[%clk 0:02:59]} 4... d6 {[%clk 0:02:57.7]} 5. c4 {[%clk 0:02:59.6]} 5...
e5 {[%clk 0:02:57]} 6. d4 {[%clk 0:02:57.6]} 6... exd4 {[%clk 0:02:50.6]} 7.
Nxd4 {[%clk 0:02:56]} 7... O-O {[%clk 0:02:49.5]} 8. Be2 {[%clk 0:02:54.9]} 8...
Nc6 {[%clk 0:02:37]} 9. Nxc6 {[%clk 0:02:52.1]} 9... bxc6 {[%clk 0:02:36.6]} 10.
O-O {[%clk 0:02:52.6]} 10... c5 {[%clk 0:02:30.6]} 11. Bf3 {[%clk 0:02:52.1]}
11... Rb8 {[%clk 0:02:30]} 12. Nc3 {[%clk 0:02:49.1]} 12... Be6 {[%clk
0:02:26.3]} 13. Qd2 {[%clk 0:02:48.3]} 13... Qe7 {[%clk 0:02:22.8]} 14. Rad1
{[%clk 0:02:45.6]} 14... Rfd8 {[%clk 0:02:17.8]} 15. h3 {[%clk 0:02:43]} 15...
h5 {[%clk 0:02:16.1]} 16. Nd5 {[%clk 0:02:36.8]} 16... Bxd5 {[%clk 0:02:08.3]}
17. cxd5 {[%clk 0:02:37.7]} 17... Bh6 {[%clk 0:02:00.8]} 18. Qc2 {[%clk
0:02:26.7]} 18... Re8 {[%clk 0:01:55.3]} 19. Rfe1 {[%clk 0:02:19]} 19... Nd7
{[%clk 0:01:04.3]} 20. Be2 {[%clk 0:02:12.8]} 20... Qh4 {[%clk 0:00:55.1]} 21.
Bf1 {[%clk 0:02:08.1]} 21... Ne5 {[%clk 0:00:49.7]} 22. f4 {[%clk 0:02:00.9]}
22... Nd7 {[%clk 0:00:44.2]} 23. Qc3 {[%clk 0:01:50.9]} 23... f6 {[%clk
0:00:44.1]} 24. Qc2 {[%clk 0:01:49.6]} 24... Qg3 {[%clk 0:00:41.7]} 25. Qf2
{[%clk 0:01:46.9]} 25... Qxf2+ {[%clk 0:00:38.3]} 26. Kxf2 {[%clk 0:01:47.8]}
26... Kf7 {[%clk 0:00:37]} 27. g4 {[%clk 0:01:39.3]} 27... hxg4 {[%clk
0:00:32.8]} 28. hxg4 {[%clk 0:01:40.2]} 28... f5 {[%clk 0:00:30.4]} 29. g5
{[%clk 0:01:32.7]} 29... Bg7 {[%clk 0:00:30]} 30. Bxg7 {[%clk 0:01:32.6]} 30...
Kxg7 {[%clk 0:00:30.9]} 31. Bc4 {[%clk 0:01:32.7]} 31... Re7 {[%clk 0:00:27.3]}
32. Rh1 {[%clk 0:01:32]} 32... Rh8 {[%clk 0:00:26.3]} 33. Rxh8 {[%clk
0:01:26.2]} 33... Kxh8 {[%clk 0:00:27.2]} 34. Rh1+ {[%clk 0:01:25.2]} 34... Rh7
{[%clk 0:00:26.5]} 35. Rxh7+ {[%clk 0:01:25.2]} 35... Kxh7 {[%clk 0:00:27]} 36.
e4 {[%clk 0:01:23.1]} 36... fxe4 {[%clk 0:00:24.6]} 37. Ke3 {[%clk 0:01:23.8]}
37... Kg7 {[%clk 0:00:23]} 38. Kxe4 {[%clk 0:01:23.9]} 38... Nb6 {[%clk
0:00:20.7]} 39. Bb5 {[%clk 0:01:22.3]} 39... Nc8 {[%clk 0:00:20.3]} 40. Bd7
{[%clk 0:01:20.5]} 40... Ne7 {[%clk 0:00:20.3]} 41. Be6 {[%clk 0:01:19.6]} 41...
Kf8 {[%clk 0:00:19.7]} 42. Kd3 {[%clk 0:01:18.8]} 42... Kg7 {[%clk 0:00:19.9]}
43. Kc4 {[%clk 0:01:19.1]} 43... a6 {[%clk 0:00:19]} 44. a4 {[%clk 0:01:13.7]}
44... Kf8 {[%clk 0:00:17.6]} 45. a5 {[%clk 0:01:14]} 45... Kg7 {[%clk
0:00:17.8]} 46. Kd3 {[%clk 0:01:08]} 46... Kf8 {[%clk 0:00:18]} 47. Ke3 {[%clk
0:01:08]} 47... Kg7 {[%clk 0:00:18.6]} 48. Ke4 {[%clk 0:01:07.4]} 48... Kf8
{[%clk 0:00:18.8]} 49. Bg4 {[%clk 0:01:04.9]} 49... Kg7 {[%clk 0:00:19.1]} 50.
Be2 {[%clk 0:01:05.1]} 50... Kf8 {[%clk 0:00:19.3]} 51. Bxa6 {[%clk 0:01:05.6]}
51... Ke8 {[%clk 0:00:18.7]} 52. Bb7 {[%clk 0:01:05.4]} 52... Nf5 {[%clk
0:00:17.7]} 53. a6 {[%clk 0:01:03.2]} 53... Nd4 {[%clk 0:00:16.1]} 54. a7 {[%clk
0:00:58.2]} 1-0

[Event "Early-Titled-Tuesday-Blitz-February-20-2024"]
[Site "Chess.com"]
[Date "2024.02.20"]
[Round "1"]
[White "AlexeiShirov"]
[Black "Cambek64"]
[Result "1-0"]
[WhiteElo "2853"]
[BlackElo "2476"]
[TimeControl "180+1"]
[EndTime "8:07:08 PST"]
[Termination "AlexeiShirov won on time"]

1. e4 {[%clk 0:03:00.9]} 1... e6 {[%clk 0:02:58.5]} 2. d4 {[%clk 0:03:00.2]}
2... d5 {[%clk 0:02:58.3]} 3. e5 {[%clk 0:03:00.1]} 3... c5 {[%clk 0:02:56.7]}
4. c3 {[%clk 0:03:00.3]} 4... b6 {[%clk 0:02:52.5]} 5. h4 {[%clk 0:02:56.7]}
5... Qd7 {[%clk 0:02:51.2]} 6. h5 {[%clk 0:02:55.3]} 6... h6 {[%clk 0:02:49.5]}
7. Nh3 {[%clk 0:02:48.2]} 7... Ba6 {[%clk 0:02:47.2]} 8. Bxa6 {[%clk 0:02:41.1]}
8... Nxa6 {[%clk 0:02:45.4]} 9. O-O {[%clk 0:02:34.9]} 9... Ne7 {[%clk
0:02:41.7]} 10. Nd2 {[%clk 0:02:33.1]} 10... cxd4 {[%clk 0:02:28.4]} 11. cxd4
{[%clk 0:02:32.4]} 11... Nb4 {[%clk 0:02:28.3]} 12. a3 {[%clk 0:02:25.5]} 12...
Nbc6 {[%clk 0:02:22.2]} 13. Nf3 {[%clk 0:02:25.3]} 13... g6 {[%clk 0:02:12.6]}
14. hxg6 {[%clk 0:02:21.8]} 14... fxg6 {[%clk 0:02:11.1]} 15. Nf4 {[%clk
0:02:18.9]} 15... Bg7 {[%clk 0:02:09.2]} 16. Qd3 {[%clk 0:02:16.8]} 16... Kf7
{[%clk 0:01:59.2]} 17. Bd2 {[%clk 0:02:15.3]} 17... g5 {[%clk 0:01:44.3]} 18.
Nh5 {[%clk 0:02:14.2]} 18... Qc8 {[%clk 0:01:10.7]} 19. Rac1 {[%clk 0:02:12.9]}
19... Qg8 {[%clk 0:01:11]} 20. Rc3 {[%clk 0:01:37.7]} 20... Qh7 {[%clk
0:00:57.1]} 21. Qxh7 {[%clk 0:01:32.5]} 21... Rxh7 {[%clk 0:00:57.1]} 22. Rfc1
{[%clk 0:01:32.3]} 22... Rc8 {[%clk 0:00:42.5]} 23. Bxg5 {[%clk 0:01:31]} 23...
hxg5 {[%clk 0:00:40.5]} 24. Nxg5+ {[%clk 0:01:30.3]} 24... Kg6 {[%clk 0:00:41]}
25. Nxh7 {[%clk 0:01:29.2]} 25... Kxh5 {[%clk 0:00:33.8]} 26. Nf6+ {[%clk
0:01:21.7]} 26... Kg6 {[%clk 0:00:31.9]} 27. f4 {[%clk 0:01:04]} 27... a6 {[%clk
0:00:19.8]} 28. Kf2 {[%clk 0:01:02.4]} 28... Bxf6 {[%clk 0:00:16.2]} 29. exf6
{[%clk 0:01:00.7]} 29... Kxf6 {[%clk 0:00:16.7]} 30. g4 {[%clk 0:01:00.1]} 30...
Na7 {[%clk 0:00:14.7]} 31. Rc7 {[%clk 0:00:50.1]} 31... Rxc7 {[%clk 0:00:14.1]}
32. Rxc7 {[%clk 0:00:48.8]} 32... Nb5 {[%clk 0:00:05]} 33. Rb7 {[%clk
0:00:39.3]} 33... Nxd4 {[%clk 0:00:01]} 34. Rxb6 {[%clk 0:00:39.3]} 1-0

[Event "Early-Titled-Tuesday-Blitz-February-20-2024"]
[Site "Chess.com"]
[Date "2024.02.20"]
[Round "1"]
[White "vladgoncharov"]
[Black "Supergiuly"]
[Result "1-0"]
[WhiteElo "2646"]
[BlackElo "2307"]
[TimeControl "180+1"]
[EndTime "8:07:09 PST"]
[Termination "vladgoncharov won by resignation"]

1. d4 {[%clk 0:03:00.9]} 1... d5 {[%clk 0:02:54.6]} 2. c4 {[%clk 0:02:57]} 2...
e6 {[%clk 0:02:50.1]} 3. Nc3 {[%clk 0:02:56.2]} 3... c6 {[%clk 0:02:48.6]} 4. e3
{[%clk 0:02:48.5]} 4... Nf6 {[%clk 0:02:45]} 5. Nf3 {[%clk 0:02:47.8]} 5... Nbd7
{[%clk 0:02:36.6]} 6. Bd3 {[%clk 0:02:44.1]} 6... dxc4 {[%clk 0:02:36]} 7. Bxc4
{[%clk 0:02:43.9]} 7... a6 {[%clk 0:02:36.8]} 8. a4 {[%clk 0:02:38.2]} 8... Bb4
{[%clk 0:02:26.3]} 9. O-O {[%clk 0:02:36.7]} 9... O-O {[%clk 0:02:25.7]} 10. Qe2
{[%clk 0:02:34.4]} 10... Rb8 {[%clk 0:02:23.1]} 11. e4 {[%clk 0:02:29]} 11... c5
{[%clk 0:02:12.7]} 12. e5 {[%clk 0:02:12.3]} 12... Bxc3 {[%clk 0:02:04.9]} 13.
exf6 {[%clk 0:02:06.9]} 13... Bxd4 {[%clk 0:02:04.2]} 14. Nxd4 {[%clk 0:02:06]}
14... cxd4 {[%clk 0:02:03.6]} 15. fxg7 {[%clk 0:02:06.4]} 15... Kxg7 {[%clk
0:02:02.4]} 16. Qg4+ {[%clk 0:01:56.6]} 16... Kh8 {[%clk 0:01:59]} 17. Qxd4+
{[%clk 0:01:45.2]} 17... Qf6 {[%clk 0:01:57.6]} 18. Qxf6+ {[%clk 0:01:40.4]}
18... Nxf6 {[%clk 0:01:57.3]} 19. Bf4 {[%clk 0:01:41]} 19... Ra8 {[%clk
0:01:54.8]} 20. Be5 {[%clk 0:01:40.4]} 20... Kg7 {[%clk 0:01:54.4]} 21. Rfd1
{[%clk 0:01:35.5]} 21... b5 {[%clk 0:01:41.6]} 22. axb5 {[%clk 0:01:25.4]} 22...
Bb7 {[%clk 0:01:41.5]} 23. bxa6 {[%clk 0:01:25.4]} 23... Be4 {[%clk 0:01:39.6]}
24. Ra3 {[%clk 0:01:20.4]} 24... Rfc8 {[%clk 0:01:35.9]} 25. Rg3+ {[%clk
0:01:17.7]} 25... Bg6 {[%clk 0:01:35.8]} 26. b3 {[%clk 0:01:16.7]} 26... Rc5
{[%clk 0:01:35.3]} 27. Re1 {[%clk 0:01:15.1]} 27... Rd8 {[%clk 0:01:32.8]} 28.
h3 {[%clk 0:01:10]} 28... h5 {[%clk 0:01:22.3]} 29. Rf3 {[%clk 0:01:07.3]} 29...
Rxe5 {[%clk 0:01:20.6]} 30. Rxe5 {[%clk 0:01:06.1]} 30... Ne4 {[%clk 0:01:10]}
31. a7 {[%clk 0:00:49.4]} 31... Nd2 {[%clk 0:01:05.4]} 32. Rf4 {[%clk 0:00:43]}
32... Ra8 {[%clk 0:00:58.4]} 33. Ra5 {[%clk 0:00:41.6]} 33... e5 {[%clk
0:00:58.7]} 34. Rf3 {[%clk 0:00:28.8]} 34... Be4 {[%clk 0:00:36.4]} 35. Re3
{[%clk 0:00:28.5]} 35... Bb7 {[%clk 0:00:27.2]} 36. Rexe5 {[%clk 0:00:27.7]}
36... Rd8 {[%clk 0:00:20.6]} 37. Bd5 {[%clk 0:00:24]} 37... Ba8 {[%clk
0:00:16.8]} 38. Bxa8 {[%clk 0:00:23.4]} 38... Rxa8 {[%clk 0:00:17.7]} 39. Reb5
{[%clk 0:00:23.7]} 39... Ne4 {[%clk 0:00:15.9]} 40. Rb8 {[%clk 0:00:22.8]} 1-0